Cogmind - Beta 13 @@@ ROGUE MODE // 2024.05.19 @ 12:30:42 Player: Gregathol Result: Destroyed by S-10 Pest with Light Assault Rifle Performance ------------- Evolutions (1) 500 Regions Visited (2) 400 Robots Destroyed (14) 70 Value Destroyed (239) 239 Prototype IDs (2) 40 Alien Tech Used (0) 0 Bonus (0) 0 TOTAL SCORE: 1249 Bonus ------- None Cogmind --------- Core Integrity 0/400 Matter 276/300 Energy 99/100 System Corruption 0% Temperature Cool (0) Movement Core (50) Location -9/Materials Parts ------- > --- POWER (1) -------- (None) > --- PROPULSION (2) --- (None) > --- UTILITY (4) ------ (None) > --- WEAPON (2) ------- (None) > --- INVENTORY (5) ---- Light Ion Engine Flight Unit Structural Scanner EM Pulse Gun Small Laser Peak State ------------ > --- POWER ------------ Improved Ion Engine > --- PROPULSION ------- Aluminum Leg Wheel > --- UTILITY ---------- Small Storage Unit Medium Storage Unit Seismic Detector > --- WEAPON ----------- Light Assault Rifle Heavy Assault Rifle > --- INVENTORY -------- Light Ion Engine Light Ion Engine Light Ion Engine Flight Unit Flight Unit Flight Unit Weight Redist. System Structural Scanner EM Pulse Gun Small Laser [Rating: 11] Favorites ----------- Power Light Ion Engine Engine Light Ion Engine Propulsion Wheel Leg Aluminum Leg Wheel Wheel Flight Unit Flight Unit Utility Small Storage Unit Device Seismic Detector Storage Small Storage Unit Weapon Light Assault Rifle Ballistic Gun Light Assault Rifle Build | -11 -10 -9 ------- Run | Yrd Mat Mat Slots Evolved 2 | . . 2 Power . | . . . Propulsion . | . . . Utility 2 | . . 2 Weapon . | . . . Parts Attached 16 | 6 3 7 Power 4 | 1 . 3 Engine 4 | 1 . 3 Core . | . . . Reactor . | . . . Propulsion 5 | 2 1 2 Treads . | . . . Leg 1 | . 1 . Wheel 2 | 2 . . Hover . | . . . Flight 2 | . . 2 Utility 4 | 1 2 1 Device 2 | . 2 . Storage 2 | 1 . 1 Processor . | . . . Hackware . | . . . Protection . | . . . Artifact . | . . . Weapon 3 | 2 . 1 Energy Gun . | . . . Energy Cannon . | . . . Ballistic Gun 3 | 2 . 1 Ballistic Cannon . | . . . Launcher . | . . . Special Weapon . | . . . Impact Weapon . | . . . Slashing Weapon . | . . . Piercing Weapon . | . . . Special Melee Weapon . | . . . Unidentified Prototypes . | . . . Parts Lost 8 | . 1 7 Power 1 | . . 1 Propulsion 5 | . 1 4 Utility . | . . . Weapon 2 | . . 2 Highest Loss Streak 7 | . 1 7 To Critical Strikes . | . . . Average Slot Usage (%) 89 | . 97 79 Engine 12 | . 14 10 Leg 3 | . . 7 Wheel 18 | . 26 8 Device 11 | . 11 10 Storage 16 | . 14 20 Ballistic Gun 24 | . 28 20 Naked Turns 5 | . . 5 Heaviest Build 27 | 11 12 27 Greatest Support 20 | 20 20 10 Greatest Overweight (x) 8 | 1 1 8 Average Overweight (x) . | . . 1 Largest Inventory Capacity 10 | 8 8 10 Average Capacity 8 | 7 8 9 Most Carried 10 | 2 7 10 Average Carried 6 | . 5 8 Final Capacity 8 | 8 8 5 Final Carried 7 | 2 7 5 Class Distribution -------------------- 96% | Mutant 3% | Scavenger-Mutant Dominant Class ---------------- Mutant | -10/Materials Mutant | -9/Materials Resources | -11 -10 -9 ----------- Run | Yrd Mat Mat Matter Collected 436 | 234 127 75 Remotely . | . . . Salvage Created 339 | . 168 171 Parts 28 | . 11 17 Haulers Intercepted 1 | . 1 . Recyclers Shooed 1 | . 1 . Parts Field Recycled . | . . . Retrieved Matter . | . . . Parts Self-Destructed . | . . . Prevented . | . . . Kills | -11 -10 -9 ------- Run | Yrd Mat Mat Combat Hostiles Destroyed 13 | . 6 7 Guns 13 | . 6 7 Classes Destroyed 4 | . 3 1 Hauler 1 | . 1 . Swarmer 9 | . 5 4 Grunt 3 | . 1 2 Sentry 1 | . . 1 Best Kill Streak 4 | . 3 4 Combat Bots Only 4 | . 3 4 Max Kills in Single Turn 1 | . 1 1 Gunslinging . | . . . Exploded . | . . . Melee . | . . . Uniques/NPCs Destroyed . | . . . Combat | -11 -10 -9 -------- Run | Yrd Mat Mat Hostile Shots Fired 132 | . 25 107 Missed 38 | . 6 32 Damage Taken 1085 | . 175 910 Core 425 | . 25 400 Absorbed by Shields . | . . . Core Remaining (%) 95 | 100 90 . Volleys Fired 37 | . 22 15 Largest 2 | . 2 2 Hottest 43 | . 40 43 Shots Fired 74 | . 44 30 Gun 74 | . 44 30 Cannon . | . . . Launcher . | . . . Special . | . . . Kinetic 74 | . 44 30 Thermal . | . . . Explosive . | . . . Electromagnetic . | . . . Robot Hit Streak 11 | . 11 7 Robot Miss Streak 3 | . 3 3 Penetration Max . | . . . Secondary Targets . | . . . Shots Hit Robots 46 | . 28 18 Core Hits 20 | . 10 10 Critical Kills . | . . . Critical Parts Destroyed . | . . . Critical Strikes . | . . . Melee Attacks . | . . . Impact . | . . . Slashing . | . . . Piercing . | . . . Sneak Attacks . | . . . Combat Hostiles . | . . . Follow-up Attacks . | . . . Damage Inflicted 524 | . 296 228 Guns 516 | . 290 226 Cannons . | . . . Explosions . | . . . Melee . | . . . Ramming 8 | . 6 2 Kinetic 516 | . 290 226 Thermal . | . . . Explosive . | . . . Electromagnetic . | . . . Impact . | . . . Slashing . | . . . Piercing . | . . . Highest Corruption . | . . . Average Corruption . | . . . Corruption Purged . | . . . Corruption Blocked . | . . . Overload Shots . | . . . Overflow Damage . | . . . Projectiles . | . . . Explosions . | . . . Melee . | . . . Knockbacks . | . . . Impact . | . . . Kinetic . | . . . Secondary . | . . . Self-Inflicted Damage 4 | . 3 1 Shots . | . . . Rammed 3 | . 1 2 Targets Rammed 3 | . 1 2 Kicked . | . . . Crushed . | . . . Highest Temperature 12 | . 12 6 Average Temperature 5 | . 6 4 Received Heat Transfer 384 | . 42 342 Siege Activations . | . . . Robots Corrupted . | . . . Combat Hostiles . | . . . Parts Fried . | . . . Impact Corruptions . | . . . Robots Melted . | . . . Combat Hostiles . | . . . Parts Melted . | . . . Heat Transferred . | . . . Parts Sabotaged . | . . . Parts Stolen . | . . . Parts Stripped . | . . . Power Chain Reactions . | . . . Alert | -11 -10 -9 ------- Run | Yrd Mat Mat Peak Influence 308 | . 164 308 Initial 68 | . . 68 Average 108 | . 67 184 Maximum Alert Level 1 | . . 1 Low Security (%) 79 | 100 100 47 Level 1 20 | . . 52 Level 2 . | . . . Level 3 . | . . . Level 4 . | . . . Level 5 . | . . . High Security . | . . . Max Security . | . . . Squads Dispatched 4 | . 1 3 Investigation 2 | . 1 1 Extermination . | . . . Reinforcement 2 | . . 2 Assault . | . . . Garrison . | . . . Intercept . | . . . Searches Triggered . | . . . Construction Impeded . | . . . Haulers Reinforced . | . . . Active Scanning Responses . | . . . Cargo Convoy Interrupts . | . . . Stealth | -11 -10 -9 --------- Run | Yrd Mat Mat Distress Signals 1 | . . 1 Communications Jammed . | . . . Distress Signals . | . . . Times Spotted 30 | . 7 23 Peak Tracking Total 9 | . 2 9 Tactical Retreats 1 | . . 1 Traps | -11 -10 -9 ------- Run | Yrd Mat Mat Traps Triggered . | . . . Indirectly . | . . . Trap Hack Attempts . | . . . Triggered . | . . . Disarmed . | . . . Reprogrammed . | . . . Reused . | . . . Traps Extracted . | . . . Installed . | . . . Triggered . | . . . Machines | -11 -10 -9 ---------- Run | Yrd Mat Mat Machines Disabled . | . . . Max in Single Turn . | . . . Machines Repaired . | . . . Machines Dismantled . | . . . Machines Sabotaged . | . . . Overloaded Fab Kills . | . . . Hacking | -11 -10 -9 --------- Run | Yrd Mat Mat Machines Accessed 5 | . 3 2 Terminals 5 | . 3 2 Fabricators . | . . . Repair Stations . | . . . Recycling Units . | . . . Scanalyzers . | . . . Garrison Access . | . . . Total Hacks 14 | . 8 6 Successful 3 | . 2 1 Failed 11 | . 6 5 Catastrophic 3 | . 3 . Database Lockouts . | . . . Manual 4 | . 4 . Terminals 14 | . 8 6 Fabricators . | . . . Repair Stations . | . . . Recycling Units . | . . . Scanalyzers . | . . . Garrison Access . | . . . Terminal Hacks 3 | . 2 1 Robot Analysis 1 | . . 1 Prototype ID Bank 1 | . 1 . Branch Access Points 1 | . 1 . Fabricator Hacks . | . . . Repair Station Hacks . | . . . Recycling Unit Hacks . | . . . Scanalyzer . | . . . Garrison Access Hacks . | . . . Unauthorized Hacks . | . . . Terminals . | . . . Fabricators . | . . . Repair Stations . | . . . Recycling Units . | . . . Scanalyzers . | . . . Garrison Access . | . . . Data Cores Recovered . | . . . Used . | . . . Hacking Detections 3 | . 2 1 Full Trace Events 2 | . 1 1 Feedback Events . | . . . Feedback Blocked . | . . . Robot Schematics Acquired . | . . . Robots Built . | . . . Authchips . | . . . Time . | . . . Total Robot Build Rating . | . . . Part Schematics Acquired . | . . . Parts Built . | . . . Authchips . | . . . Time . | . . . Total Part Build Rating . | . . . Parts Repaired . | . . . Time . | . . . Parts Recycled . | . . . Recycled Matter . | . . . Retrieved Matter . | . . . Retrieved Components . | . . . Parts Scanalyzed . | . . . Part Schematics Acquired . | . . . Parts Damaged . | . . . Bothacking | -11 -10 -9 ------------ Run | Yrd Mat Mat Used RIF Installer . | . . . Robots Hacked . | . . . Non-combat . | . . . Combat . | . . . Robot Hacks Applied . | . . . Relay Couplers Released . | . . . Fabnet Peak Effective % . | . . . Robots Rewired . | . . . Allies Hacked . | . . . Hacks Repelled . | . . . Allies | -11 -10 -9 -------- Run | Yrd Mat Mat Total Allies . | . . . Largest Group . | . . . Highest-Rated Group . | . . . Highest-Rated Ally . | . . . Total Orders . | . . . Ally Attacks . | . . . Total Damage . | . . . Kills . | . . . Allies Corrupted . | . . . Allies Melted . | . . . Intel | -11 -10 -9 ------- Run | Yrd Mat Mat Robot Analysis Total 1 | . . 1 Derelict Logs Recovered . | . . . Drone Launches . | . . . Drone Recoveries . | . . . Exploration | -11 -10 -9 ------------- Run | Yrd Mat Mat Turns Passed 599 | 42 320 237 Spaces Moved 453 | 39 277 137 Core 13 | 1 . 12 Treads . | . . . Legs 20 | . 11 9 Wheels 411 | 38 266 107 Hover . | . . . Flight 9 | . . 9 Fastest Speed 50 | 50 80 50 Average Speed 98 | 81 84 130 Slowest Speed 520 | 95 190 520 Overloaded Moves . | . . . Propulsion Burnouts . | . . . Robots Hopped . | . . . Cave-ins Triggered . | . . . Exploration Rate (%) 25 | 3 48 25 Regions Visited 2 Branch Regions . Pre-discovered Areas . | . . . Known Exits Taken . | . . . Unknown Exits Taken 2 | 1 1 . Scrap Searched . | . . . Spaces Dug . | . . . Terrain Destroyed . | . . . Melee . | . . . Projectile . | . . . AOE . | . . . Terrain Rammed . | . . . Walls Destroyed . | . . . Machines Disabled . | . . . Actions | -11 -10 -9 --------- Run | Yrd Mat Mat Total 536 | 46 323 167 Wait 20 | . 16 4 Move 451 | 38 276 137 Hop . | . . . Pick Up 7 | 2 4 1 Fast Attach 10 | 6 3 1 Attach 3 | . . 3 Detach 1 | . 1 . Swap 3 | . . 3 Drop 1 | . . 1 Fire 37 | . 22 15 Melee . | . . . Ram 3 | . 1 2 Kick . | . . . Crush . | . . . Escape Stasis . | . . . Rewire . | . . . Trap . | . . . Miscellaneous . | . . . Route ------- -11/Scrapyard -10/Materials (discovered 4 exits: *Mat x2 / *Min x2) -9/Materials History --------- Turn | Location | Event 14 | -11/Scrapyard | Discovered new exit (range 16) 43 | -11/Scrapyard | Entered Materials 124 | -10/Materials | Discovered new exit (range 12) 171 | -10/Materials | Discovered new exit (range 8) 210 | -10/Materials | Discovered new exit (range 14) 294 | -10/Materials | Discovered new exit (range 4) 307 | -10/Materials | Build established: Mutant 308 | -10/Materials | Identified exit to Mines 363 | -10/Materials | Entered another Materials area 363 | -9/Materials | Evolved 2 slots: Utility x2 589 | -9/Materials | Core integrity fell below 50% 595 | -9/Materials | Core integrity fell below 20% 595 | -9/Materials | Released all parts (3) 600 | -9/Materials | Destroyed by S-10 Pest with Light Assault Rifle Last Messages --------------- 00547_ R-06 Scavenger collects Ion Engine. 00552_ Wheel destroyed. 00553_ G-34 Mercenary destroyed. 00563_ R-06 Scavenger collects Heat Sink. 00567_ R-06 Scavenger collects Aluminum Leg. 00571_ Lgt. Assault Rifle destroyed. 00583_ Flight Unit destroyed. 00584_ O-16 Technician sends out distress signal. 00586_ Critical hit (Burn: +37). 00588_ Imp. Ion Engine destroyed. 00589_ Flight Unit destroyed. 00592_ Hvy. Assault Rifle destroyed. 00593_ ALERT: Hostiles spotted, dispatching reinforcements to Terminal M006. 00594_ Lgt. Ion Engine severed. 00595_ Released Seismic Detector. 00595_ Released Sml. Storage Unit. 00595_ Released Med. Storage Unit. 00596_ R-06 Scavenger collects Weight Redist. System. 00597_ T-07 Excavator is excavating. 00598_ Critical hit (Burn: +37). Map ----- +----------------------------------------------------+ | ?????????????????????????????????????????????## | | ??????????????????????????????????????????????# | | ??????????????????????##??????????????????????# | | ??????????????????????# #??####+############ | | ??????????????????????# | | ??????????????????????# ??####### ######### | | ??????????????????????# ????????# #???????# | | ??????????????????????# ????????# #???????# | | ??????????????????????# ????????# #???????# | | ??????????????????????# #???????#*#???????+ | | ??????????????????????# ######### #???????# | | ??????????????????????# g % # """" ?# | | ????????????????####### / # | | ???????????????? # # | | ????????????????### ! s #? # | | ??????????????????# !* #?? "Y" # " | | ??????????????????# """ wg !* #????"" # | | ??????????????????# """ l ##????#?? ? | | ??????????????????# """ %g at #??????? ? | | ??????????????????# #?????????? | | ??????????????????# #?????????? | | ??????????????????# #?????????? | | ??????????????????# #?????????? | | ??????????????????# ############?????????? | | ??????????????????# #????????????????????? | | ??????????????????# !!@ #????????????????????? | | ??????????????????# !u[ #????????????????????? | | ?????????????????#t ![ ???????????????????? | | ?????????????????## ?????????????????? | | ??????????????????# u ???????????????? | | ??????????????????# !!! ?????????????? | | ??????????????????# !!! ???????????? | | ??????????????????# !k #??????????? | | ??????????????????# ???????????? | | ??????????????????# ???????????? | | ??????????????????# ????????????? | | ??????????????????# ????????????? | | ??????????????????+ ##############??????????????? | | ??????????????????# ????????????????????????????? | | ?????????????????????????????????????????????????? | | ?????????????????????????????????????????????????? | | ?????????????????????????????????????????????????? | | ?????????????????????????????????????????????????? | | ?????????????????????????????????????????????????? | | ?????????????????????????????????????????????????? | | ?????????????????????????????????????????????????? | | ?????????????????????????????????????????????????? | | ?????????????????????????????????????????????????? | | ?????????????????????????????????????????????????? | | ?????????????????????????????????????????????????? | +----------------------------------------------------+ Best States ------------- Heat Dissipation 28 Energy Generation 12 Energy Capacity 265 Matter Stores 300 Matter Capacity 300 Sight Range 16 Terrain Scan Density 10 Evasion (%) 50 Item Schematics ----------------- None Robot Schematics ------------------ None Fabricated ------------ Nothing Alien Tech Used ----------------- None Achievements -------------- None Challenges ------------ None Game ------ Seed DeepMultitargetingDatajack Manual? 0 Play Time 00:13:11 Cumulative 121.9 hours Start 2024.05.19 @ 00:34:31 End 2024.05.19 @ 12:30:42 Sessions 3 Manual Loads 0 Difficulty Rogue Special Mode None Game No. 101 Rogue 77 Adventurer 23 Explorer 1 Win Type - Total 1 Types 0/0/1/0/0/0/0/0/0 Lore% 23 Gallery% 47 Achievement% 33 Wizard Run 0 Options --------- Layout 0 ASCII 0 Keyboard 0 Movement Numpad Keybinds 0 Fullscreen 2 Font 16/Terminus Map View 88x55 Zoom Use 0% Tactical HUD 1 Map Filters NONE Filters NONE Steam 1 RUN: 49129864-5684-4bd0-a5a3-605214f3463b